bitfinex/quotes_BTCUSD_20250825
["timestamp","ask_amount","ask_price","bid_price","bid_amount"]
[1756111152176,0.43811359,111980.0,111970.0,0.64475603]
[1756111152385,0.43811359,111980.0,111970.0,0.64679603]
[1756111153401,0.43814227,111980.0,111970.0,0.64395603]
[1756111153628,0.43814227,111980.0,111970.0,0.64089603]
[1756111153846,0.43815145,111980.0,111970.0,0.64395603]
[1756111154923,0.43815145,111980.0,111970.0,0.64081603]
[1756111155357,0.43815145,111980.0,111970.0,0.48843603]
[1756111155599,0.43815145,111980.0,111970.0,0.64387603]
[1756111156286,0.43815145,111980.0,111970.0,0.64583603]
[1756111157928,0.43815145,111980.0,111970.0,0.64579603]
[1756111158173,0.43815145,111980.0,111970.0,0.64571603]
[1756111159914,0.43815145,111980.0,111970.0,0.64563603]
[1756111160340,0.4038789,111980.0,111970.0,0.64563603]
[1756111160763,0.4038789,111980.0,111970.0,0.49047603]
[1756111160973,0.4038789,111980.0,111970.0,0.64563603]
[1756111161414,0.4038789,111980.0,111970.0,0.49047603]
[1756111161622,0.4038789,111980.0,111970.0,0.64555603]
[1756111162407,0.4038789,111980.0,111970.0,0.64551603]
[1756111165231,0.4038789,111980.0,111970.0,0.49047603]
[1756111165431,0.4038789,111980.0,111970.0,0.64547603]
[1756111169496,0.4038789,111980.0,111970.0,0.64575603]
[1756111170182,0.4038789,111980.0,111970.0,0.48843603]
[1756111170392,0.4038789,111980.0,111970.0,0.49047603]
[1756111170710,0.4038789,111980.0,111970.0,0.64591603]
[1756111172745,0.026852,111980.0,111970.0,0.64591603]
[1756111172966,0.02908904,111980.0,111970.0,0.64591603]
[1756111173170,0.40611594,111980.0,111970.0,0.64591603]
[1756111173392,0.4038789,111980.0,111970.0,0.64591603]
[1756111173762,0.366852,111980.0,111970.0,0.64591603]
[1756111174041,0.7438789,111980.0,111970.0,0.73280078]
[1756111174427,0.4038789,111980.0,111970.0,0.73280078]
[1756111174585,0.026852,111980.0,111970.0,0.73280078]
[1756111174977,3.4484,111990.0,111970.0,0.73280078]
[1756111175185,3.8522719,111990.0,111980.0,0.24765729]
[1756111175433,3.8522719,111990.0,111980.0,0.31614475]
[1756111175633,3.8522719,111990.0,111980.0,0.31610475]
[1756111176390,3.8532719,111990.0,111980.0,0.31610475]
[1756111176591,3.8522719,111990.0,111980.0,0.31610475]
[1756111176793,3.8522719,111990.0,111980.0,0.31606475]
[1756111177003,3.8532719,111990.0,111980.0,0.31606475]
[1756111177634,3.4048719,111990.0,111980.0,0.16066475]
[1756111178065,3.4048719,111990.0,111980.0,0.31598475]
[1756111178486,3.4048719,111990.0,111980.0,0.16066475]
[1756111178695,3.4048719,111990.0,111980.0,0.31606475]
[1756111180584,3.027845,111990.0,111980.0,0.31606475]
[1756111180791,3.4048719,111990.0,111980.0,0.31606475]
[1756111181433,3.027845,111990.0,111980.0,0.31606475]
[1756111181642,3.4048719,111990.0,111980.0,0.31606475]
[1756111183006,3.027845,111990.0,111980.0,0.31606475]
[1756111183231,3.4048719,111990.0,111980.0,0.31606475]
[1756111183686,3.027845,111990.0,111980.0,0.31606475]
[1756111184155,3.16095521,111990.0,111980.0,0.31606475]
[1756111187912,2.78392831,111990.0,111980.0,0.31606475]
[1756111188118,3.16095521,111990.0,111980.0,0.31606475]
[1756111189885,2.78392831,111990.0,111980.0,0.31606475]
[1756111190294,3.16095521,111990.0,111980.0,0.31606475]
[1756111190956,2.78392831,111990.0,111980.0,0.31606475]
[1756111191386,3.16095521,111990.0,111980.0,0.31606475]
[1756111192048,3.16095521,111990.0,111980.0,0.31402475]
[1756111192259,3.16095521,111990.0,111980.0,0.31608475]
[1756111193121,0.51860332,111980.0,111970.0,0.48537603]
[1756111193338,2.00500311,111980.0,111970.0,0.48537603]
[1756111193580,0.51863522,111960.0,111950.0,5e-05]
[1756111193778,5.76103735,111960.0,111950.0,5e-05]
[1756111194026,5.76103735,111960.0,111950.0,0.00019395]
[1756111194027,6.9471613,111960.0,111950.0,0.00019395]
[1756111194243,6.97734214,111960.0,111950.0,0.00019395]
[1756111194461,0.89571,111930.0,111920.0,5e-05]
[1756111194678,1.92576659,111930.0,111920.0,5e-05]
[1756111194894,2.13740949,111930.0,111920.0,5e-05]
[1756111195113,1.16843604,111930.0,111920.0,5e-05]
[1756111195341,0.95525685,111930.0,111920.0,5e-05]
[1756111195559,1.30882815,111930.0,111920.0,5e-05]
[1756111195983,1.30878713,111930.0,111920.0,5e-05]
[1756111196203,0.93131316,111930.0,111920.0,5e-05]
[1756111196426,0.99834238,111930.0,111920.0,5e-05]
[1756111196649,0.45616685,111930.0,111920.0,5e-05]
[1756111196862,0.42396881,111930.0,111920.0,0.00505]
[1756111197076,0.80144278,111930.0,111920.0,0.00505]
[1756111197295,0.80144278,111930.0,111920.0,5e-05]
[1756111197543,1.23744455,111930.0,111920.0,5e-05]
[1756111197756,1.25409182,111930.0,111920.0,5e-05]
[1756111198002,0.83453907,111930.0,111920.0,5e-05]
[1756111198226,0.95544278,111930.0,111920.0,0.00505]
[1756111198434,1.13679186,111930.0,111920.0,5e-05]
[1756111198650,0.95882876,111930.0,111920.0,5e-05]
[1756111198870,1.14051186,111930.0,111920.0,5e-05]
[1756111199094,1.22738151,111930.0,111920.0,5e-05]
[1756111199309,1.24183053,111930.0,111920.0,5e-05]
[1756111199524,1.15696088,111930.0,111920.0,5e-05]
[1756111199935,0.77948691,111930.0,111920.0,5e-05]
[1756111200154,1.15696088,111930.0,111920.0,5e-05]
[1756111200632,1.18911044,111930.0,111920.0,5e-05]
[1756111200838,1.27599519,111930.0,111920.0,5e-05]
[1756111201048,1.99211395,111930.0,111920.0,5e-05]
[1756111201699,1.36274484,111930.0,111920.0,5e-05]
[1756111201922,1.08812563,111930.0,111920.0,5e-05]
[1756111202137,1.24376563,111930.0,111920.0,5e-05]
[1756111202783,1.24076563,111930.0,111920.0,5e-05]
[1756111203221,1.24576563,111930.0,111920.0,5e-05]
[1756111203433,1.31364156,111930.0,111920.0,5e-05]
[1756111203644,1.34379112,111930.0,111920.0,5e-05]
[1756111203873,1.97304023,111930.0,111920.0,5e-05]
[1756111204099,1.97508023,111930.0,111920.0,5e-05]
[1756111204319,1.34583112,111930.0,111920.0,5e-05]
[1756111204592,1.97508023,111930.0,111920.0,5e-05]
[1756111205470,2.0383423,111930.0,111920.0,5e-05]
[1756111205684,6.72935446,111930.0,111920.0,5e-05]
[1756111205928,0.53616405,111910.0,111900.0,5e-05]
[1756111206140,1.94222712,111910.0,111900.0,0.00019395]
[1756111206354,1.97437668,111910.0,111900.0,0.00019395]
[1756111206788,1.98828321,111910.0,111900.0,0.00019395]
[1756111207007,2.00737087,111910.0,111900.0,0.00019395]
[1756111207434,2.01337087,111910.0,111900.0,0.00019395]
[1756111207646,2.03912704,111910.0,111900.0,0.00019395]
[1756111208056,2.04212704,111910.0,111900.0,0.00019395]
[1756111208260,2.01337087,111910.0,111900.0,0.00019395]
[1756111208466,1.99428321,111910.0,111900.0,0.00019395]
[1756111210680,6.76355463,111910.0,111900.0,0.00019395]
[1756111210970,0.53621198,111880.0,111870.0,5e-05]
[1756111211193,1.31275584,111880.0,111870.0,0.00019401]
[1756111211625,1.97415451,111880.0,111870.0,0.00019401]
[1756111211841,6.69530751,111880.0,111870.0,0.00019401]
[1756111212058,6.53994751,111880.0,111870.0,0.00019401]
[1756111212273,6.69534751,111880.0,111870.0,0.00019401]
[1756111212712,6.73602009,111880.0,111870.0,0.00019401]
[1756111212975,6.73602009,111880.0,111870.0,0.00119401]
[1756111213365,6.73602009,111880.0,111870.0,0.00019401]
[1756111213569,6.73590009,111880.0,111870.0,0.00019401]
[1756111213783,6.73690009,111880.0,111870.0,0.00019401]
[1756111213987,6.73790009,111880.0,111870.0,0.00019401]
[1756111215425,6.74156509,111880.0,111870.0,0.00019401]
[1756111215586,6.75551395,111880.0,111870.0,0.00019401]
[1756111216880,6.75548281,111880.0,111870.0,0.00019401]
[1756111218867,6.60016281,111880.0,111870.0,0.00019401]
[1756111219124,6.75544281,111880.0,111870.0,0.00019401]
[1756111220225,6.77324326,111880.0,111870.0,0.00019401]
[1756111221265,1.31899426,111880.0,111870.0,0.00542401]
[1756111221477,0.07678311,111880.0,111870.0,0.00542401]
[1756111221686,0.59754526,111880.0,111870.0,0.00542401]
[1756111221895,1.22247118,111880.0,111870.0,0.00542401]
[1756111222095,1.2399202,111880.0,111870.0,0.00542401]
[1756111222301,1.5799202,111880.0,111870.0,0.00542401]
[1756111222753,1.60714287,111880.0,111870.0,0.00542401]
[1756111222965,1.58969385,111880.0,111870.0,0.00542401]
[1756111223170,1.60718287,111880.0,111870.0,0.00542401]
[1756111224432,1.59912518,111880.0,111870.0,0.00542401]
[1756111224643,1.22866822,111880.0,111870.0,0.00542401]
[1756111224852,0.88866822,111880.0,111870.0,0.00542401]
[1756111225264,1.22866822,111880.0,111870.0,0.00542401]
[1756111225673,1.38274822,111880.0,111870.0,0.00542401]
[1756111226112,1.38270822,111880.0,111870.0,0.00642401]
[1756111226328,0.46952167,111880.0,111870.0,0.09330876]
[1756111226540,0.02025958,111880.0,111870.0,0.09230876]
[1756111226957,0.01700958,111880.0,111870.0,0.09730876]
[1756111227173,0.01700958,111880.0,111870.0,0.09430876]
[1756111227612,0.01700958,111880.0,111870.0,0.09830876]
[1756111227823,0.01700958,111880.0,111870.0,0.09430876]
[1756111228093,0.01700958,111880.0,111870.0,0.09930876]
[1756111228517,0.01700958,111880.0,111870.0,0.47678273]
[1756111228737,0.01667458,111880.0,111870.0,0.09930876]
[1756111229363,0.01667458,111880.0,111870.0,0.09730876]
[1756111229579,0.01667458,111880.0,111870.0,0.09430876]
[1756111229789,0.39414855,111880.0,111870.0,0.09430876]
[1756111230002,0.01667458,111880.0,111870.0,0.09730876]
[1756111230221,0.01667458,111880.0,111870.0,0.09230876]
[1756111230431,0.01667458,111880.0,111870.0,0.10230876]
[1756111230900,0.39414855,111880.0,111870.0,0.10230876]
[1756111231550,0.01667458,111880.0,111870.0,0.10230876]
[1756111233703,0.39414855,111880.0,111870.0,0.10230876]
[1756111234550,0.01667458,111880.0,111870.0,0.10230876]
[1756111234772,0.39638559,111880.0,111870.0,0.10230876]
[1756111235022,0.01667458,111880.0,111870.0,0.10230876]
[1756111235852,0.39414855,111880.0,111870.0,0.10230876]
[1756111236281,0.3941545,111880.0,111870.0,0.10230876]
[1756111237726,0.4210285,111880.0,111870.0,0.10230876]
[1756111238546,0.04355453,111880.0,111870.0,0.10230876]
[1756111239613,0.04354765,111880.0,111870.0,0.10230876]
[1756111240074,0.04354765,111880.0,111870.0,0.47978273]
[1756111240075,0.01667365,111880.0,111870.0,0.47978273]
[1756111240288,0.15512,111910.0,111870.0,0.47978273]
[1756111240289,0.026869,111900.0,111870.0,0.47978273]
[1756111240491,0.42101141,111900.0,111880.0,0.31382475]
[1756111240696,0.42101141,111900.0,111890.0,0.00196]
[1756111240910,0.42101141,111900.0,111890.0,0.09186475]
[1756111241357,0.49211304,111900.0,111890.0,0.09186475]
[1756111241980,0.49412304,111900.0,111890.0,0.09186475]
[1756111242398,0.49412304,111900.0,111890.0,0.08884475]
[1756111242847,0.49412304,111900.0,111880.0,0.22706]
[1756111243052,0.37971101,111890.0,111880.0,0.31394475]
[1756111243255,0.39616241,111890.0,111880.0,0.31590475]
[1756111243483,0.39414241,111890.0,111880.0,0.31590475]
[1756111244089,0.39414241,111890.0,111880.0,0.31790475]
[1756111244293,0.39414241,111890.0,111880.0,0.32090475]
[1756111244495,0.38204815,111890.0,111880.0,0.32090475]
[1756111245938,0.36537971,111890.0,111880.0,0.32090475]
[1756111246156,0.38205464,111890.0,111880.0,0.31890475]
[1756111246585,0.38205914,111890.0,111880.0,0.32190475]
[1756111248254,0.3941534,111890.0,111880.0,0.32190475]
[1756111248463,0.01667943,111890.0,111880.0,0.32190475]
[1756111248672,0.01891647,111890.0,111880.0,0.32190475]
[1756111248867,0.01667943,111890.0,111880.0,0.32190475]
[1756111249890,0.01667943,111890.0,111880.0,0.72819728]
[1756111250082,0.01667943,111890.0,111880.0,0.35072331]
[1756111250281,0.00223704,111910.0,111880.0,0.72819728]
[1756111250491,0.0189434,111910.0,111890.0,0.09213908]
[1756111250692,0.39641737,111910.0,111900.0,0.15684]
[1756111250899,0.39418033,111910.0,111900.0,0.24674475]
[1756111251527,0.39619033,111910.0,111900.0,0.24168475]
[1756111252910,0.39619033,111910.0,111900.0,0.08688475]
[1756111253112,0.39619033,111910.0,111900.0,0.24168475]
[1756111253113,0.39941033,111910.0,111900.0,0.24168475]
[1756111253455,0.39619033,111910.0,111900.0,0.24268475]
[1756111253678,0.01670636,111910.0,111900.0,0.24766475]
[1756111253878,0.39842737,111910.0,111900.0,0.24766475]
[1756111254089,0.39619033,111910.0,111900.0,0.24766475]
[1756111254259,0.39619033,111910.0,111900.0,0.24464475]
[1756111255901,0.39622965,111910.0,111900.0,0.24464475]
[1756111256860,0.01674568,111910.0,111900.0,0.24766475]
[1756111257081,0.39645669,111910.0,111900.0,0.24766475]
[1756111257298,0.39421965,111910.0,111900.0,0.24766475]
[1756111257519,0.01674568,111910.0,111900.0,0.24766475]
[1756111257783,0.01898272,111910.0,111900.0,0.24766475]
[1756111258013,0.39645669,111910.0,111900.0,0.24766475]
[1756111258237,0.39421965,111910.0,111900.0,0.24766475]
[1756111259882,0.01674568,111910.0,111900.0,0.24766475]
[1756111260091,0.01898272,111910.0,111900.0,0.24766475]
[1756111260506,0.39645669,111910.0,111900.0,0.24766475]
[1756111260726,0.39421965,111910.0,111900.0,0.24766475]
[1756111263841,0.01876568,111910.0,111900.0,0.24416475]
[1756111264045,0.39847669,111910.0,111900.0,0.24416475]
[1756111264259,0.39623965,111910.0,111900.0,0.24718475]
[1756111264463,0.39421965,111910.0,111900.0,0.24718475]
[1756111264611,0.39422251,111910.0,111900.0,0.24718475]
[1756111267519,0.39422251,111910.0,111900.0,0.24698475]
[1756111269712,0.39422251,111910.0,111900.0,0.24703475]
[1756111270957,0.01674854,111910.0,111900.0,0.24703475]
[1756111271176,0.39645955,111910.0,111900.0,0.24703475]
[1756111271411,0.39422251,111910.0,111900.0,0.24703475]
[1756111272195,0.01674854,111910.0,111900.0,0.24703475]
[1756111272392,0.37747397,111930.0,111900.0,0.24703475]
[1756111272600,0.01675535,111930.0,111910.0,0.16097868]
[1756111272768,0.39422932,111930.0,111920.0,0.15594]
[1756111273012,0.39422932,111930.0,111920.0,0.24596475]
[1756111273631,0.39621932,111930.0,111920.0,0.08688475]
[1756111273881,0.39958309,111930.0,111910.0,0.06872]
[1756111274096,0.45403264,111920.0,111910.0,0.24080475]
[1756111274306,0.4538056,111920.0,111910.0,0.24080475]
[1756111274520,0.47055825,111920.0,111910.0,0.24080475]
[1756111274734,0.47055825,111920.0,111900.0,0.00305]
[1756111274735,0.81055825,111920.0,111900.0,0.00305]
[1756111274950,0.37971101,111910.0,111900.0,0.24085475]
[1756111275153,0.39945662,111910.0,111900.0,0.24085475]
[1756111275796,0.73945662,111910.0,111900.0,5e-05]
[1756111276228,1.07205165,111910.0,111900.0,5e-05]
[1756111276926,1.70130076,111910.0,111900.0,5e-05]
[1756111277162,1.75837288,111910.0,111900.0,5e-05]
[1756111277389,1.75837288,111910.0,111900.0,0.00105]
[1756111277607,0.40230212,111910.0,111900.0,0.00105]
[1756111277821,0.77587369,111910.0,111900.0,0.00105]
[1756111278042,0.89033059,111910.0,111900.0,0.00105]
[1756111279072,0.51285662,111910.0,111900.0,0.00105]
[1756111279279,0.89033059,111910.0,111900.0,0.00105]
[1756111282193,0.87357397,111910.0,111900.0,0.00105]
[1756111282605,0.71949397,111910.0,111900.0,0.00617]
[1756111283029,0.71949397,111910.0,111900.0,0.00105]
[1756111283236,0.34202,111910.0,111900.0,0.00105]
[1756111283444,0.71949397,111910.0,111900.0,0.00105]
[1756111283852,0.73694299,111910.0,111900.0,0.00105]
[1756111284300,0.91565802,111910.0,111900.0,0.00105]
[1756111284717,1.66395087,111910.0,111900.0,0.00105]
[1756111285125,1.67793513,111910.0,111900.0,0.00105]
[1756111285343,1.59106548,111910.0,111900.0,0.00105]
[1756111285551,1.64580122,111910.0,111900.0,0.00105]
[1756111285779,1.74942952,111910.0,111900.0,0.00105]
[1756111286424,1.74942952,111910.0,111900.0,5e-05]
[1756111286855,1.79338351,111910.0,111900.0,5e-05]
[1756111287512,0.78666043,111910.0,111900.0,5e-05]
[1756111287790,1.93147996,111910.0,111900.0,5e-05]
[1756111288049,1.95021701,111910.0,111900.0,5e-05]
[1756111288274,2.03288813,111910.0,111900.0,5e-05]
[1756111288724,2.04687346,111910.0,111900.0,5e-05]
[1756111289430,2.07081715,111910.0,111900.0,5e-05]
[1756111289802,6.82219713,111910.0,111900.0,5e-05]
[1756111290026,5.76170338,111910.0,111900.0,5e-05]
[1756111290229,6.76842646,111910.0,111900.0,5e-05]
[1756111290416,6.76542646,111910.0,111900.0,5e-05]
[1756111290815,6.77042646,111910.0,111900.0,5e-05]
[1756111291020,6.76538646,111910.0,111900.0,5e-05]
[1756111291428,6.77038646,111910.0,111900.0,5e-05]
[1756111291997,6.75840113,111910.0,111900.0,5e-05]
[1756111292208,6.60324113,111910.0,111900.0,5e-05]
[1756111292417,6.41438113,111910.0,111900.0,5e-05]
[1756111292628,6.26122113,111910.0,111900.0,5e-05]
[1756111292846,6.41630113,111910.0,111900.0,5e-05]
[1756111293477,6.26122113,111910.0,111900.0,5e-05]
[1756111293719,6.41622113,111910.0,111900.0,5e-05]
[1756111293974,6.41620944,111910.0,111900.0,5e-05]
[1756111294469,6.75620944,111910.0,111900.0,5e-05]
[1756111294883,6.75620809,111910.0,111900.0,5e-05]
[1756111295298,6.77019465,111910.0,111900.0,5e-05]
[1756111296737,6.77377865,111910.0,111900.0,5e-05]
[1756111298191,6.80396563,111910.0,111900.0,5e-05]
[1756111298398,6.77377865,111910.0,111900.0,5e-05]
[1756111298613,6.87377865,111910.0,111900.0,5e-05]
[1756111298818,7.07790932,111910.0,111900.0,5e-05]
[1756111299465,7.07770932,111910.0,111900.0,5e-05]
[1756111299678,7.04752234,111910.0,111900.0,5e-05]
[1756111300129,6.89272234,111910.0,111900.0,5e-05]
[1756111300370,7.04752234,111910.0,111900.0,5e-05]
[1756111300601,7.06372276,111910.0,111900.0,5e-05]
[1756111301268,6.91372276,111910.0,111900.0,5e-05]
[1756111301482,7.06372276,111910.0,111900.0,5e-05]
[1756111301702,0.57368595,111880.0,111870.0,5e-05]
[1756111301912,0.8842107,111880.0,111870.0,5e-05]
[1756111302167,0.7312907,111880.0,111870.0,0.00533]
[1756111302374,0.8877957,111880.0,111870.0,0.00533]
[1756111302990,0.8887957,111880.0,111870.0,0.00547401]
[1756111303706,0.8889157,111880.0,111870.0,0.00547401]
[1756111303873,0.7339157,111880.0,111870.0,0.00547401]
[1756111304090,0.71007274,111880.0,111870.0,0.00547401]
[1756111304298,0.8888357,111880.0,111870.0,0.00547401]
[1756111304457,0.90282329,111880.0,111870.0,0.00547401]
[1756111304856,0.48225558,111880.0,111870.0,0.00547401]
[1756111305067,0.63713558,111880.0,111870.0,0.00547401]
[1756111305279,0.81589854,111880.0,111870.0,0.00547401]
[1756111305499,0.68156331,111880.0,111870.0,0.00547401]
[1756111305706,0.63713558,111880.0,111870.0,0.00547401]
[1756111306317,0.63709558,111880.0,111870.0,0.00547401]
[1756111306536,0.85647099,111880.0,111870.0,0.00547401]
[1756111306748,0.52290803,111880.0,111870.0,0.00547401]
[1756111306947,0.67770803,111880.0,111870.0,0.00547401]
[1756111307822,0.85647099,111880.0,111870.0,0.00547401]
[1756111308273,0.52290803,111880.0,111870.0,0.00547401]
[1756111308515,0.67770803,111880.0,111870.0,0.00547401]
[1756111308923,0.85647099,111880.0,111870.0,0.00547401]
[1756111309131,0.67770803,111880.0,111870.0,0.00547401]
[1756111309341,0.85647099,111880.0,111870.0,0.00547401]
[1756111309547,0.67770803,111880.0,111870.0,0.00547401]
[1756111309778,0.52290803,111880.0,111870.0,0.00547401]
[1756111309989,0.85639099,111880.0,111870.0,0.00547401]
[1756111311079,0.88908041,111880.0,111870.0,0.00547401]
[1756111311518,0.85639099,111880.0,111870.0,0.00547401]
[1756111312186,0.85835099,111880.0,111870.0,0.00019401]
[1756111312639,0.89052508,111880.0,111870.0,0.00019401]
[1756111313265,0.89052508,111880.0,111870.0,0.00335401]
[1756111313470,0.8907715,111880.0,111870.0,0.00547401]
[1756111313842,0.89076017,111880.0,111870.0,0.00547401]
[1756111314682,0.89076017,111880.0,111870.0,0.00335401]
[1756111315405,0.90753154,111880.0,111870.0,0.00335401]
[1756111315851,0.90753154,111880.0,111870.0,0.00019401]
[1756111316405,1.08128594,111880.0,111870.0,0.00019401]
[1756111317444,0.99441629,111880.0,111870.0,0.00019401]
[1756111319882,1.01563602,111880.0,111870.0,0.00019401]
[1756111320095,1.35563602,111880.0,111870.0,0.00547401]
[1756111321554,1.35563602,111880.0,111870.0,0.00019401]
[1756111322199,1.35564396,111880.0,111870.0,0.00335401]
[1756111322800,1.35564522,111880.0,111870.0,0.00335401]
[1756111323465,0.97597616,111880.0,111870.0,0.00547401]
[1756111323664,1.07990638,111880.0,111870.0,0.00547401]
[1756111323869,0.90114342,111880.0,111870.0,0.00547401]
[1756111324072,1.05530342,111880.0,111870.0,0.00547401]
[1756111324284,0.90114342,111880.0,111870.0,0.00547401]
[1756111324506,0.45467436,111880.0,111870.0,0.00547401]
[1756111324715,0.56069718,111880.0,111870.0,0.00547401]
[1756111324932,0.93840624,111880.0,111870.0,0.00547401]
[1756111325567,0.95559653,111880.0,111870.0,0.00547401]
[1756111328109,0.96958373,111880.0,111870.0,0.00547401]
[1756111328284,0.81534373,111880.0,111870.0,0.00547401]
[1756111328487,0.96950373,111880.0,111870.0,0.00547401]
[1756111328700,0.96850373,111880.0,111870.0,0.00647401]
[1756111329133,0.96850373,111880.0,111870.0,0.00847401]
[1756111329337,0.59079467,111880.0,111870.0,0.00847401]
[1756111329573,0.98528275,111880.0,111870.0,0.00847401]
[1756111329785,0.60753369,111880.0,111870.0,0.00847401]
[1756111330006,0.98524275,111880.0,111870.0,0.00847401]
[1756111330424,0.97125555,111880.0,111870.0,0.00847401]
[1756111331691,0.97073709,111880.0,111870.0,0.00847401]
[1756111331892,0.97073547,111880.0,111870.0,0.00847401]
[1756111333158,0.97105547,111880.0,111870.0,0.00847401]
[1756111335365,0.97105202,111880.0,111870.0,0.00847401]
[1756111336516,0.59334296,111880.0,111870.0,0.00847401]
[1756111336716,0.97105202,111880.0,111870.0,0.00847401]
[1756111337139,0.59334296,111880.0,111870.0,0.00847401]
[1756111337368,0.97105202,111880.0,111870.0,0.00847401]
[1756111337739,0.57656901,111880.0,111870.0,0.00847401]
[1756111338188,0.95427807,111880.0,111870.0,0.00847401]
[1756111340508,0.95455807,111880.0,111870.0,0.00847401]
[1756111342810,0.95651807,111880.0,111870.0,0.00847401]
[1756111344137,1.22338068,111880.0,111870.0,0.00319401]
[1756111344359,1.18545533,111880.0,111870.0,0.00319401]
[1756111345051,1.27234008,111880.0,111870.0,0.00319401]
[1756111345714,0.89340102,111880.0,111870.0,0.00319401]
[1756111345919,0.68318397,111880.0,111870.0,0.00319401]
[1756111346131,1.23965599,111880.0,111870.0,0.00319401]
[1756111347232,1.24088599,111880.0,111870.0,0.00319401]
[1756111347698,1.23965599,111880.0,111870.0,0.00319401]
[1756111348733,1.25364357,111880.0,111870.0,0.00319401]
[1756111349185,1.70204357,111880.0,111870.0,0.00319401]
[1756111350466,1.68805599,111880.0,111870.0,0.00319401]
[1756111350647,1.68928599,111880.0,111870.0,0.00319401]
[1756111350788,1.68805599,111880.0,111870.0,0.00319401]
[1756111350994,1.68805599,111880.0,111870.0,0.00627401]
[1756111351198,1.12962397,111880.0,111870.0,0.00835401]
[1756111351418,1.26500465,111880.0,111870.0,0.00835401]
[1756111351623,1.42016465,111880.0,111870.0,0.00835401]
[1756111352203,1.42016404,111880.0,111870.0,0.00835401]
[1756111352741,1.42028404,111880.0,111870.0,0.00835401]
[1756111353823,1.43427154,111880.0,111870.0,0.00835401]
[1756111354041,1.05648248,111880.0,111870.0,0.00835401]
[1756111354236,1.43419154,111880.0,111870.0,0.00835401]
[1756111354842,1.43411112,111880.0,111870.0,0.00835401]
[1756111355071,1.05640206,111880.0,111870.0,0.00835401]
[1756111355326,1.43411112,111880.0,111870.0,0.00835401]
[1756111357335,1.43607112,111880.0,111870.0,0.00319401]
[1756111357539,1.64823817,111880.0,111870.0,0.00319401]
[1756111358001,1.73512292,111880.0,111870.0,0.00319401]
[1756111359397,1.73512292,111880.0,111870.0,0.00019401]
[1756111359830,1.73512292,111880.0,111870.0,0.00119401]
[1756111360556,6.56251776,111880.0,111870.0,0.00119401]
[1756111360764,6.5934014,111880.0,111870.0,0.00119401]
[1756111360981,6.90041952,111880.0,111870.0,0.00119401]
[1756111361192,1.66937112,111860.0,111850.0,0.00045]
[1756111361403,1.99859896,111860.0,111850.0,0.00045]
[1756111361626,2.14782968,111860.0,111850.0,0.00045]
[1756111361878,2.14905968,111860.0,111850.0,0.00045]
[1756111362298,6.87025268,111860.0,111850.0,0.00045]
[1756111362924,6.8400657,111860.0,111850.0,0.00045]
[1756111363349,6.8410657,111860.0,111850.0,0.00045]
[1756111363568,6.87125268,111860.0,111850.0,0.00045]
[1756111363768,0.91398497,111840.0,111830.0,5e-05]
[1756111363973,1.24441937,111840.0,111830.0,5e-05]
[1756111364180,1.27782346,111840.0,111830.0,5e-05]
[1756111364392,1.28140946,111840.0,111830.0,5e-05]
[1756111365217,1.28145733,111840.0,111830.0,5e-05]
[1756111365442,1.29545194,111840.0,111830.0,5e-05]
[1756111365631,6.01664494,111840.0,111830.0,5e-05]
[1756111365858,6.04683192,111840.0,111830.0,0.00105]
[1756111366056,6.04679192,111840.0,111830.0,0.00105]
[1756111366691,6.04679192,111840.0,111830.0,0.00205]
[1756111366901,6.01660494,111840.0,111830.0,0.00205]
[1756111367099,6.01660494,111840.0,111830.0,0.00105]
[1756111367316,6.01652494,111840.0,111830.0,5e-05]
[1756111367515,6.01652494,111840.0,111830.0,0.00105]
[1756111368757,6.05589894,111840.0,111830.0,5e-05]
[1756111368954,6.05789894,111840.0,111830.0,5e-05]
[1756111369164,6.05689894,111840.0,111830.0,5e-05]
[1756111369600,6.50629894,111840.0,111830.0,5e-05]
[1756111370686,6.50621894,111840.0,111830.0,5e-05]
[1756111372048,1.66943508,111820.0,111810.0,0.00174]
[1756111372239,2.06838948,111820.0,111810.0,0.00174]
[1756111372468,2.10056357,111820.0,111810.0,0.00174]
[1756111372690,1.34514545,111820.0,111810.0,0.00174]
[1756111372917,1.34873245,111820.0,111810.0,0.00174]
[1756111373389,1.34873245,111820.0,111810.0,0.00274]
[1756111373604,1.34873245,111820.0,111810.0,0.00474]
[1756111373836,2.10415057,111820.0,111810.0,0.00474]
[1756111374538,2.10538057,111820.0,111810.0,0.00474]
[1756111374954,6.82657357,111820.0,111810.0,0.00474]
[1756111375157,6.84056972,111820.0,111810.0,0.00374]
[1756111375584,6.84056972,111820.0,111810.0,0.00174]
[1756111376057,6.84056972,111820.0,111810.0,0.00274]
[1756111376423,6.83913972,111820.0,111810.0,0.00274]
[1756111377320,6.0837216,111820.0,111810.0,0.00479]
[1756111377544,5.80847786,111820.0,111810.0,0.00775]
[1756111377771,5.96267786,111820.0,111810.0,0.00775]
[1756111378221,5.80847786,111820.0,111810.0,0.00775]
[1756111378594,1.24152486,111820.0,111810.0,0.00775]
[1756111379970,1.24348486,111820.0,111810.0,0.00274]
[1756111380196,1.33035451,111820.0,111810.0,0.00274]
[1756111380449,1.32835451,111820.0,111810.0,0.00775]
[1756111380679,0.1732679,111820.0,111810.0,0.00775]
[1756111380914,0.4523331,111820.0,111810.0,0.00775]
[1756111381137,0.38129606,111820.0,111810.0,0.00775]
[1756111381352,0.53561606,111820.0,111810.0,0.00775]
[1756111381592,0.45333335,111820.0,111810.0,0.00775]
[1756111381816,0.53202906,111820.0,111810.0,0.00675]
[1756111382043,0.74460006,111820.0,111810.0,0.00675]
[1756111382263,0.89896006,111820.0,111810.0,0.00775]
[1756111382476,0.026891,111820.0,111810.0,0.00775]
[1756111382695,0.18348804,111820.0,111810.0,0.00775]
[1756111382904,0.55896006,111820.0,111810.0,0.00775]
[1756111383117,0.55896006,111820.0,111810.0,0.00975]
[1756111383343,0.89896006,111820.0,111810.0,0.00875]
[1756111383797,0.89896006,111820.0,111810.0,0.01275]
[1756111385091,0.89896006,111820.0,111810.0,0.01075]
[1756111385298,0.89896006,111820.0,111810.0,0.01375]
[1756111385859,0.521251,111820.0,111810.0,0.01375]
[1756111386069,0.89896006,111820.0,111810.0,0.01375]
[1756111386272,0.89892006,111820.0,111810.0,0.01375]
[1756111386453,0.91565266,111820.0,111810.0,0.01375]
[1756111386858,0.76133266,111820.0,111810.0,0.01375]
[1756111387063,0.91557266,111820.0,111810.0,0.01375]
[1756111388296,1.19875021,111820.0,111810.0,0.01375]
[1756111388721,1.04451021,111820.0,111810.0,0.01375]
[1756111388926,1.20067021,111820.0,111810.0,0.01375]
[1756111389133,1.19871021,111820.0,111810.0,0.01075]
[1756111389553,1.20069143,111820.0,111810.0,0.00374]
[1756111389970,1.20069143,111820.0,111810.0,0.00474]
[1756111390377,1.18393761,111820.0,111810.0,0.00174]